Workbook

Sheet Sheet1
B1: A Function vs its Derivatives
B3: This graphing utility lets you investigate
B4: the first and second derivatives
B5: of any desired function
C6: y = f(x)
B7: on any interval from x = a to x = b.
A9: Enter the function in terms of x: f(x) = | F9: x^4-3*x^3-25*x^2+6*x+5
A13: Now enter the interval for x:
C14: xMin = | D14: -3
C15: xMax = | D15: 3
M19: The graphs of f(x) = | P19: =F9 -> x^4-3*x^3-25*x^2+6*x+5
N20: and its first and second derivatives
A21: Click each item below for suggestions and investigations
B22: Item 1 | M22: Select the point on the curve at x0 = | Q22: =P24 -> -0.54
B23: Item 2
B24: Item 3 | O24: 41 | P24: =D14+O24*(D15-D14)/100 -> -0.54
B25: Item 4
M27: The slope of the tangent line at x0 = | Q27: =P24 -> -0.54
M28: = the derivative f '( x0) of the function = | R28: =LOOKUP(P24,Sheet2!E3:E1003,Sheet2!G3:G1003) -> 29.72585138
A29: To access/download all the DIGMath Apps for Calculus
A30: Click this link: | C30: DIGMath for Calculus
A32: Created by: Sheldon P. Gordon
A33: Farmingdale State College
A34: Development of this module was supported by the
A35: NSF's Division of Undergraduate Education
A36: under grants DUE-0310123 and DUE-0442160.

Sheet Sheet2
E1: x | F1: f(x) | G1: f '(x) | H1: f ''(x)
F2: =Sheet1!#REF! -> 
A3: delta x = | B3: =(Sheet1!D15-Sheet1!D14)/1001 -> 0.005994005994 | E3: =Sheet1!D14 -> -3.00 | F3: =x^4-3*x^3-25*x^2+6*x+5 -> -76 | G3: =(F4-F3)/Sheet2!$B$3 -> -32.66487437 | H3: =(F5-2*F4+F3)/Sheet2!$B$3^2 -> 111.4610425
E4: =E3+Sheet2!B$3 -> -2.99 | F4: -76.19579345 | G4: =(F5-F4)/Sheet2!$B$3 -> -31.99677621 | H4: =(F5-2*F4+F3)/Sheet2!$B$3^2 -> 111.4610425
E5: =E4+Sheet2!B$3 -> -2.99 | F5: -76.38758232 | G5: =(F6-F5)/Sheet2!$B$3 -> -31.33190383 | H5: =(F6-2*F5+F4)/Sheet2!$B$3^2 -> 110.9228753
A6: xl= | B6: =IF(Sheet1!$P$24<Sheet1!D14+80*Sheet2!B3,Sheet1!D14,Sheet1!P24-80*Sheet2!B3) -> -1.01952048 | C6: =LOOKUP(Sheet1!P24,Sheet2!E3:E1002,Sheet2!F3:F1002)+LOOKUP(Sheet1!P24,Sheet2!E3:E1002,Sheet2!G3:G1002)*(B6-Sheet1!P24) -> -19.29994437 | D6: "=yl | E6: =E5+Sheet2!B$3 -> -2.98 | F6: -76.57538594 | G6: =(F7-F6)/Sheet2!$B$3 -> -30.67025206 | H6: =(F7-2*F6+F5)/Sheet2!$B$3^2 -> 110.3855705
A7: xr= | B7: =IF(Sheet1!$P$24>Sheet1!D15-80*Sheet2!B3,Sheet1!D15,Sheet1!P24+80*Sheet2!B3) -> -0.06047952048 | C7: =LOOKUP(Sheet1!P24,Sheet2!E3:E1003,Sheet2!F3:F1003)+LOOKUP(Sheet1!P24,Sheet2!E3:E1003,Sheet2!G3:G1003)*(B7-Sheet1!P24) -> 9.208364645 | D7: "=yR | E7: =E6+Sheet2!B$3 -> -2.98 | F7: -76.75922362 | G7: =(F8-F7)/Sheet2!$B$3 -> -30.01181573 | H7: =(F8-2*F7+F6)/Sheet2!$B$3^2 -> 109.8491279
E8: =E7+Sheet2!B$3 -> -2.97 | F8: -76.93911462 | G8: =(F9-F8)/Sheet2!$B$3 -> -29.35658967 | H8: =(F9-2*F8+F7)/Sheet2!$B$3^2 -> 109.3135476
A9: vertical lines | E9: =E8+Sheet2!B$3 -> -2.96 | F9: -77.11507819 | G9: =(F10-F9)/Sheet2!$B$3 -> -28.70456872 | H9: =(F10-2*F9+F8)/Sheet2!$B$3^2 -> 108.7788296
A10: vertical | B10: =Sheet1!P24 -> -0.54 | C10: =MIN(LOOKUP(Sheet1!P24,Sheet2!E3:E1003,Sheet2!F3:F1003),LOOKUP(Sheet1!P24,Sheet2!E3:E1003:'Sheet2'!G3:G1003),LOOKUP(Sheet1!P24,Sheet2!E3:E1003,Sheet2!H3:H103)) -> -36.70457016 | D10: = ymin | E10: =E9+Sheet2!B$3 -> -2.96 | F10: -77.28713355 | G10: =(F11-F10)/Sheet2!$B$3 -> -28.05574769 | H10: =(F11-2*F10+F9)/Sheet2!$B$3^2 -> 108.2449738
B11: =Sheet1!P24 -> -0.54 | C11: =MAX(LOOKUP(Sheet1!P24,Sheet2!E3:E1003,Sheet2!F3:F1003),LOOKUP(Sheet1!P24,Sheet2!E3:E1003:'Sheet2'!G3:G1003),LOOKUP(Sheet1!P24,Sheet2!E3:E1003,Sheet2!H3:H1003)) -> 29.72585138 | D11: = ymax | E11: =E10+Sheet2!B$3 -> -2.95 | F11: -77.45529987 | G11: =(F12-F11)/Sheet2!$B$3 -> -27.41012144 | H11: =(F12-2*F11+F10)/Sheet2!$B$3^2 -> 107.7119803
E12: =E11+Sheet2!B$3 -> -2.95 | F12: -77.6195963 | G12: =(F13-F12)/Sheet2!$B$3 -> -26.76768478 | H12: =(F13-2*F12+F11)/Sheet2!$B$3^2 -> 107.1798491
E13: =E12+Sheet2!B$3 -> -2.94 | F13: -77.78004197 | G13: =(F14-F13)/Sheet2!$B$3 -> -26.12843255 | H13: =(F14-2*F13+F12)/Sheet2!$B$3^2 -> 106.6485802
E14: =E13+Sheet2!B$3 -> -2.93 | F14: -77.93665595 | G14: =(F15-F14)/Sheet2!$B$3 -> -25.49235958 | H14: =(F15-2*F14+F13)/Sheet2!$B$3^2 -> 106.1181735
E15: =E14+Sheet2!B$3 -> -2.93 | F15: -78.0894573 | G15: =(F16-F15)/Sheet2!$B$3 -> -24.85946071 | H15: =(F16-2*F15+F14)/Sheet2!$B$3^2 -> 105.5886292
E16: =E15+Sheet2!B$3 -> -2.92 | F16: -78.23846506 | G16: =(F17-F16)/Sheet2!$B$3 -> -24.22973076 | H16: =(F17-2*F16+F15)/Sheet2!$B$3^2 -> 105.059947
E17: =E16+Sheet2!B$3 -> -2.92 | F17: -78.38369821 | G17: =(F18-F17)/Sheet2!$B$3 -> -23.60316456 | H17: =(F18-2*F17+F16)/Sheet2!$B$3^2 -> 104.5321272
E18: =E17+Sheet2!B$3 -> -2.91 | F18: -78.52517572 | G18: =(F19-F18)/Sheet2!$B$3 -> -22.97975695 | H18: =(F19-2*F18+F17)/Sheet2!$B$3^2 -> 104.0051697
E19: =E18+Sheet2!B$3 -> -2.90 | F19: -78.66291652 | G19: =(F20-F19)/Sheet2!$B$3 -> -22.35950276 | H19: =(F20-2*F19+F18)/Sheet2!$B$3^2 -> 103.4790744
E20: =E19+Sheet2!B$3 -> -2.90 | F20: -78.79693951 | G20: =(F21-F20)/Sheet2!$B$3 -> -21.74239681 | H20: =(F21-2*F20+F19)/Sheet2!$B$3^2 -> 102.9538414
E21: =E20+Sheet2!B$3 -> -2.89 | F21: -78.92726357 | G21: =(F22-F21)/Sheet2!$B$3 -> -21.12843395 | H21: =(F22-2*F21+F20)/Sheet2!$B$3^2 -> 102.4294706
E22: =E21+Sheet2!B$3 -> -2.89 | F22: -79.05390753 | G22: =(F23-F22)/Sheet2!$B$3 -> -20.517609 | H22: =(F23-2*F22+F21)/Sheet2!$B$3^2 -> 101.9059622
E23: =E22+Sheet2!B$3 -> -2.88 | F23: -79.1768902 | G23: =(F24-F23)/Sheet2!$B$3 -> -19.9099168 | H23: =(F24-2*F23+F22)/Sheet2!$B$3^2 -> 101.383316
E24: =E23+Sheet2!B$3 -> -2.87 | F24: -79.29623036 | G24: =(F25-F24)/Sheet2!$B$3 -> -19.30535217 | H24: =(F25-2*F24+F23)/Sheet2!$B$3^2 -> 100.8615321
E25: =E24+Sheet2!B$3 -> -2.87 | F25: -79.41194676 | G25: =(F26-F25)/Sheet2!$B$3 -> -18.70390995 | H25: =(F26-2*F25+F24)/Sheet2!$B$3^2 -> 100.3406104
E26: =E25+Sheet2!B$3 -> -2.86 | F26: -79.52405811 | G26: =(F27-F26)/Sheet2!$B$3 -> -18.10558497 | H26: =(F27-2*F26+F25)/Sheet2!$B$3^2 -> 99.82055108
E27: =E26+Sheet2!B$3 -> -2.86 | F27: -79.63258309 | G27: =(F28-F27)/Sheet2!$B$3 -> -17.51037206 | H27: =(F28-2*F27+F26)/Sheet2!$B$3^2 -> 99.30135399
E28: =E27+Sheet2!B$3 -> -2.85 | F28: -79.73754037 | G28: =(F29-F28)/Sheet2!$B$3 -> -16.91826605 | H28: =(F29-2*F28+F27)/Sheet2!$B$3^2 -> 98.78301918
E29: =E28+Sheet2!B$3 -> -2.84 | F29: -79.83894856 | G29: =(F30-F29)/Sheet2!$B$3 -> -16.32926178 | H29: =(F30-2*F29+F28)/Sheet2!$B$3^2 -> 98.26554664
E30: =E29+Sheet2!B$3 -> -2.84 | F30: -79.93682625 | G30: =(F31-F30)/Sheet2!$B$3 -> -15.74335407 | H30: =(F31-2*F30+F29)/Sheet2!$B$3^2 -> 97.74893638
E31: =E30+Sheet2!B$3 -> -2.83 | F31: -80.03119201 | G31: =(F32-F31)/Sheet2!$B$3 -> -15.16053775 | H31: =(F32-2*F31+F30)/Sheet2!$B$3^2 -> 97.23318839
E32: =E31+Sheet2!B$3 -> -2.83 | F32: -80.12206436 | G32: =(F33-F32)/Sheet2!$B$3 -> -14.58080766 | H32: =(F33-2*F32+F31)/Sheet2!$B$3^2 -> 96.71830268
E33: =E32+Sheet2!B$3 -> -2.82 | F33: -80.20946181 | G33: =(F34-F33)/Sheet2!$B$3 -> -14.00415864 | H33: =(F34-2*F33+F32)/Sheet2!$B$3^2 -> 96.20427924
E34: =E33+Sheet2!B$3 -> -2.81 | F34: -80.29340282 | G34: =(F35-F34)/Sheet2!$B$3 -> -13.4305855 | H34: =(F35-2*F34+F33)/Sheet2!$B$3^2 -> 95.69111807
E35: =E34+Sheet2!B$3 -> -2.81 | F35: -80.37390583 | G35: =(F36-F35)/Sheet2!$B$3 -> -12.86008309 | H35: =(F36-2*F35+F34)/Sheet2!$B$3^2 -> 95.17881918
E36: =E35+Sheet2!B$3 -> -2.80 | F36: -80.45098925 | G36: =(F37-F36)/Sheet2!$B$3 -> -12.29264623 | H36: =(F37-2*F36+F35)/Sheet2!$B$3^2 -> 94.66738257
E37: =E36+Sheet2!B$3 -> -2.80 | F37: -80.52467144 | G37: =(F38-F37)/Sheet2!$B$3 -> -11.72826976 | H37: =(F38-2*F37+F36)/Sheet2!$B$3^2 -> 94.15680823
E38: =E37+Sheet2!B$3 -> -2.79 | F38: -80.59497076 | G38: =(F39-F38)/Sheet2!$B$3 -> -11.1669485 | H38: =(F39-2*F38+F37)/Sheet2!$B$3^2 -> 93.64709616
E39: =E38+Sheet2!B$3 -> -2.78 | F39: -80.66190552 | G39: =(F40-F39)/Sheet2!$B$3 -> -10.6086773 | H39: =(F40-2*F39+F38)/Sheet2!$B$3^2 -> 93.13824637
E40: =E39+Sheet2!B$3 -> -2.78 | F40: -80.72549399 | G40: =(F41-F40)/Sheet2!$B$3 -> -10.05345097 | H40: =(F41-2*F40+F39)/Sheet2!$B$3^2 -> 92.63025885
E41: =E40+Sheet2!B$3 -> -2.77 | F41: -80.78575444 | G41: =(F42-F41)/Sheet2!$B$3 -> -9.501264355 | H41: =(F42-2*F41+F40)/Sheet2!$B$3^2 -> 92.12313361
E42: =E41+Sheet2!B$3 -> -2.77 | F42: -80.84270507 | G42: =(F43-F42)/Sheet2!$B$3 -> -8.952112283 | H42: =(F43-2*F42+F41)/Sheet2!$B$3^2 -> 91.61687064
E43: =E42+Sheet2!B$3 -> -2.76 | F43: -80.89636409 | G43: =(F44-F43)/Sheet2!$B$3 -> -8.405989586 | H43: =(F44-2*F43+F42)/Sheet2!$B$3^2 -> 91.11146995
E44: =E43+Sheet2!B$3 -> -2.75 | F44: -80.94674964 | G44: =(F45-F44)/Sheet2!$B$3 -> -7.862891095 | H44: =(F45-2*F44+F43)/Sheet2!$B$3^2 -> 90.60693153
E45: =E44+Sheet2!B$3 -> -2.75 | F45: -80.99387986 | G45: =(F46-F45)/Sheet2!$B$3 -> -7.322811642 | H45: =(F46-2*F45+F44)/Sheet2!$B$3^2 -> 90.10325539
E46: =E45+Sheet2!B$3 -> -2.74 | F46: -81.03777283 | G46: =(F47-F46)/Sheet2!$B$3 -> -6.785746059 | H46: =(F47-2*F46+F45)/Sheet2!$B$3^2 -> 89.60044152
E47: =E46+Sheet2!B$3 -> -2.74 | F47: -81.07844664 | G47: =(F48-F47)/Sheet2!$B$3 -> -6.251689176 | H47: =(F48-2*F47+F46)/Sheet2!$B$3^2 -> 89.09848992
E48: =E47+Sheet2!B$3 -> -2.73 | F48: -81.1159193 | G48: =(F49-F48)/Sheet2!$B$3 -> -5.720635826 | H48: =(F49-2*F48+F47)/Sheet2!$B$3^2 -> 88.5974006
E49: =E48+Sheet2!B$3 -> -2.72 | F49: -81.15020882 | G49: =(F50-F49)/Sheet2!$B$3 -> -5.19258084 | H49: =(F50-2*F49+F48)/Sheet2!$B$3^2 -> 88.09717356
E50: =E49+Sheet2!B$3 -> -2.72 | F50: -81.18133318 | G50: =(F51-F50)/Sheet2!$B$3 -> -4.667519049 | H50: =(F51-2*F50+F49)/Sheet2!$B$3^2 -> 87.59780878
E51: =E50+Sheet2!B$3 -> -2.71 | F51: -81.20931032 | G51: =(F52-F51)/Sheet2!$B$3 -> -4.145445285 | H51: =(F52-2*F51+F50)/Sheet2!$B$3^2 -> 87.09930629
E52: =E51+Sheet2!B$3 -> -2.71 | F52: -81.23415815 | G52: =(F53-F52)/Sheet2!$B$3 -> -3.626354379 | H52: =(F53-2*F52+F51)/Sheet2!$B$3^2 -> 86.60166607
E53: =E52+Sheet2!B$3 -> -2.70 | F53: -81.25589454 | G53: =(F54-F53)/Sheet2!$B$3 -> -3.110241164 | H53: =(F54-2*F53+F52)/Sheet2!$B$3^2 -> 86.10488812
E54: =E53+Sheet2!B$3 -> -2.69 | F54: -81.27453734 | G54: =(F55-F54)/Sheet2!$B$3 -> -2.59710047 | H54: =(F55-2*F54+F53)/Sheet2!$B$3^2 -> 85.60897245
E55: =E54+Sheet2!B$3 -> -2.69 | F55: -81.29010438 | G55: =(F56-F55)/Sheet2!$B$3 -> -2.086927129 | H55: =(F56-2*F55+F54)/Sheet2!$B$3^2 -> 85.11391905
E56: =E55+Sheet2!B$3 -> -2.68 | F56: -81.30261343 | G56: =(F57-F56)/Sheet2!$B$3 -> -1.579715972 | H56: =(F57-2*F56+F55)/Sheet2!$B$3^2 -> 84.61972792
E57: =E56+Sheet2!B$3 -> -2.68 | F57: -81.31208226 | G57: =(F58-F57)/Sheet2!$B$3 -> -1.075461832 | H57: =(F58-2*F57+F56)/Sheet2!$B$3^2 -> 84.12639908
E58: =E57+Sheet2!B$3 -> -2.67 | F58: -81.31852858 | G58: =(F59-F58)/Sheet2!$B$3 -> -0.5741595393 | H58: =(F59-2*F58+F57)/Sheet2!$B$3^2 -> 83.6339325
E59: =E58+Sheet2!B$3 -> -2.66 | F59: -81.3219701 | G59: =(F60-F59)/Sheet2!$B$3 -> -0.07580392573 | H59: =(F60-2*F59+F58)/Sheet2!$B$3^2 -> 83.1423282
E60: =E59+Sheet2!B$3 -> -2.66 | F60: -81.32242447 | G60: =(F61-F60)/Sheet2!$B$3 -> 0.4196101772 | H60: =(F61-2*F60+F59)/Sheet2!$B$3^2 -> 82.65158618
E61: =E60+Sheet2!B$3 -> -2.65 | F61: -81.31990932 | G61: =(F62-F61)/Sheet2!$B$3 -> 0.912087938 | H61: =(F62-2*F61+F60)/Sheet2!$B$3^2 -> 82.16170643
E62: =E61+Sheet2!B$3 -> -2.65 | F62: -81.31444226 | G62: =(F63-F62)/Sheet2!$B$3 -> 1.401634525 | H62: =(F63-2*F62+F61)/Sheet2!$B$3^2 -> 81.67268895
E63: =E62+Sheet2!B$3 -> -2.64 | F63: -81.30604085 | G63: =(F64-F63)/Sheet2!$B$3 -> 1.888255107 | H63: =(F64-2*F63+F62)/Sheet2!$B$3^2 -> 81.18453375
E64: =E63+Sheet2!B$3 -> -2.63 | F64: -81.29472264 | G64: =(F65-F64)/Sheet2!$B$3 -> 2.371954852 | H64: =(F65-2*F64+F63)/Sheet2!$B$3^2 -> 80.69724082
E65: =E64+Sheet2!B$3 -> -2.63 | F65: -81.28050513 | G65: =(F66-F65)/Sheet2!$B$3 -> 2.852738929 | H65: =(F66-2*F65+F64)/Sheet2!$B$3^2 -> 80.21081017
E66: =E65+Sheet2!B$3 -> -2.62 | F66: -81.2634058 | G66: =(F67-F66)/Sheet2!$B$3 -> 3.330612506 | H66: =(F67-2*F66+F65)/Sheet2!$B$3^2 -> 79.72524179
E67: =E66+Sheet2!B$3 -> -2.62 | F67: =x^4-3*x^3-25*x^2+6*x+5 -> -81.24344208 | G67: =(F68-F67)/Sheet2!$B$3 -> 3.805580752 | H67: =(F68-2*F67+F66)/Sheet2!$B$3^2 -> 79.24053569
E68: =E67+Sheet2!B$3 -> -2.61 | F68: -81.22063141 | G68: =(F69-F68)/Sheet2!$B$3 -> 4.277648835 | H68: =(F69-2*F68+F67)/Sheet2!$B$3^2 -> 78.75669186
E69: =E68+Sheet2!B$3 -> -2.60 | F69: -81.19499116 | G69: =(F70-F69)/Sheet2!$B$3 -> 4.746821924 | H69: =(F70-2*F69+F68)/Sheet2!$B$3^2 -> 78.27371031
E70: =E69+Sheet2!B$3 -> -2.60 | F70: -81.16653868 | G70: =(F71-F70)/Sheet2!$B$3 -> 5.213105187 | H70: =(F71-2*F70+F69)/Sheet2!$B$3^2 -> 77.79159103
E71: =E70+Sheet2!B$3 -> -2.59 | F71: -81.13529129 | G71: =(F72-F71)/Sheet2!$B$3 -> 5.676503792 | H71: =(F72-2*F71+F70)/Sheet2!$B$3^2 -> 77.31033402
E72: =E71+Sheet2!B$3 -> -2.59 | F72: -81.1012663 | G72: =(F73-F72)/Sheet2!$B$3 -> 6.137022909 | H72: =(F73-2*F72+F71)/Sheet2!$B$3^2 -> 76.82993929
E73: =E72+Sheet2!B$3 -> -2.58 | F73: -81.06448094 | G73: =(F74-F73)/Sheet2!$B$3 -> 6.594667705 | H73: =(F74-2*F73+F72)/Sheet2!$B$3^2 -> 76.35040684
E74: =E73+Sheet2!B$3 -> -2.57 | F74: -81.02495247 | G74: =(F75-F74)/Sheet2!$B$3 -> 7.04944335 | H74: =(F75-2*F74+F73)/Sheet2!$B$3^2 -> 75.87173665
E75: =E74+Sheet2!B$3 -> -2.57 | F75: -80.98269806 | G75: =(F76-F75)/Sheet2!$B$3 -> 7.50135501 | H75: =(F76-2*F75+F74)/Sheet2!$B$3^2 -> 75.39392875
E76: =E75+Sheet2!B$3 -> -2.56 | F76: -80.93773489 | G76: =(F77-F76)/Sheet2!$B$3 -> 7.950407856 | H76: =(F77-2*F76+F75)/Sheet2!$B$3^2 -> 74.91698312
E77: =E76+Sheet2!B$3 -> -2.56 | F77: -80.8900801 | G77: =(F78-F77)/Sheet2!$B$3 -> 8.396607056 | H77: =(F78-2*F77+F76)/Sheet2!$B$3^2 -> 74.44089976
E78: =E77+Sheet2!B$3 -> -2.55 | F78: -80.83975079 | G78: =(F79-F78)/Sheet2!$B$3 -> 8.839957777 | H78: =(F79-2*F78+F77)/Sheet2!$B$3^2 -> 73.96567868
E79: =E78+Sheet2!B$3 -> -2.54 | F79: -80.78676403 | G79: =(F80-F79)/Sheet2!$B$3 -> 9.280465189 | H79: =(F80-2*F79+F78)/Sheet2!$B$3^2 -> 73.49131987
E80: =E79+Sheet2!B$3 -> -2.54 | F80: -80.73113686 | G80: =(F81-F80)/Sheet2!$B$3 -> 9.718134459 | H80: =(F81-2*F80+F79)/Sheet2!$B$3^2 -> 73.01782334
E81: =E80+Sheet2!B$3 -> -2.53 | F81: -80.67288631 | G81: =(F82-F81)/Sheet2!$B$3 -> 10.15297076 | H81: =(F82-2*F81+F80)/Sheet2!$B$3^2 -> 72.54518908
E82: =E81+Sheet2!B$3 -> -2.53 | F82: -80.61202934 | G82: =(F83-F82)/Sheet2!$B$3 -> 10.58497925 | H82: =(F83-2*F82+F81)/Sheet2!$B$3^2 -> 72.07341709
E83: =E82+Sheet2!B$3 -> -2.52 | F83: -80.54858291 | G83: =(F84-F83)/Sheet2!$B$3 -> 11.01416511 | H83: =(F84-2*F83+F82)/Sheet2!$B$3^2 -> 71.60250738
E84: =E83+Sheet2!B$3 -> -2.51 | F84: -80.48256394 | G84: =(F85-F84)/Sheet2!$B$3 -> 11.4405335 | H84: =(F85-2*F84+F83)/Sheet2!$B$3^2 -> 71.13245995
E85: =E84+Sheet2!B$3 -> -2.51 | F85: -80.41398931 | G85: =(F86-F85)/Sheet2!$B$3 -> 11.86408959 | H85: =(F86-2*F85+F84)/Sheet2!$B$3^2 -> 70.66327479
E86: =E85+Sheet2!B$3 -> -2.50 | F86: -80.34287589 | G86: =(F87-F86)/Sheet2!$B$3 -> 12.28483856 | H86: =(F87-2*F86+F85)/Sheet2!$B$3^2 -> 70.1949519
E87: =E86+Sheet2!B$3 -> -2.50 | F87: -80.26924049 | G87: =(F88-F87)/Sheet2!$B$3 -> 12.70278556 | H87: =(F88-2*F87+F86)/Sheet2!$B$3^2 -> 69.72749129
E88: =E87+Sheet2!B$3 -> -2.49 | F88: -80.19309992 | G88: =(F89-F88)/Sheet2!$B$3 -> 13.11793576 | H88: =(F89-2*F88+F87)/Sheet2!$B$3^2 -> 69.26089295
E89: =E88+Sheet2!B$3 -> -2.48 | F89: -80.11447094 | G89: =(F90-F89)/Sheet2!$B$3 -> 13.53029435 | H89: =(F90-2*F89+F88)/Sheet2!$B$3^2 -> 68.79515689
E90: =E89+Sheet2!B$3 -> -2.48 | F90: -80.03337027 | G90: =(F91-F90)/Sheet2!$B$3 -> 13.93986647 | H90: =(F91-2*F90+F89)/Sheet2!$B$3^2 -> 68.3302831
E91: =E90+Sheet2!B$3 -> -2.47 | F91: -79.94981463 | G91: =(F92-F91)/Sheet2!$B$3 -> 14.34665731 | H91: =(F92-2*F91+F90)/Sheet2!$B$3^2 -> 67.86627159
E92: =E91+Sheet2!B$3 -> -2.47 | F92: -79.86382068 | G92: =(F93-F92)/Sheet2!$B$3 -> 14.75067203 | H92: =(F93-2*F92+F91)/Sheet2!$B$3^2 -> 67.40312235
E93: =E92+Sheet2!B$3 -> -2.46 | F93: -79.77540506 | G93: =(F94-F93)/Sheet2!$B$3 -> 15.1519158 | H93: =(F94-2*F93+F92)/Sheet2!$B$3^2 -> 66.94083539
E94: =E93+Sheet2!B$3 -> -2.45 | F94: -79.68458439 | G94: =(F95-F94)/Sheet2!$B$3 -> 15.55039379 | H94: =(F95-2*F94+F93)/Sheet2!$B$3^2 -> 66.4794107
E95: =E94+Sheet2!B$3 -> -2.45 | F95: -79.59137523 | G95: =(F96-F95)/Sheet2!$B$3 -> 15.94611116 | H95: =(F96-2*F95+F94)/Sheet2!$B$3^2 -> 66.01884828
E96: =E95+Sheet2!B$3 -> -2.44 | F96: -79.49579415 | G96: =(F97-F96)/Sheet2!$B$3 -> 16.33907309 | H96: =(F97-2*F96+F95)/Sheet2!$B$3^2 -> 65.55914814
E97: =E96+Sheet2!B$3 -> -2.44 | F97: -79.39785764 | G97: =(F98-F97)/Sheet2!$B$3 -> 16.72928474 | H97: =(F98-2*F97+F96)/Sheet2!$B$3^2 -> 65.10031028
E98: =E97+Sheet2!B$3 -> -2.43 | F98: -79.29758221 | G98: =(F99-F98)/Sheet2!$B$3 -> 17.11675128 | H98: =(F99-2*F98+F97)/Sheet2!$B$3^2 -> 64.64233469
E99: =E98+Sheet2!B$3 -> -2.42 | F99: -79.1949843 | G99: =(F100-F99)/Sheet2!$B$3 -> 17.50147788 | H99: =(F100-2*F99+F98)/Sheet2!$B$3^2 -> 64.18522137
E100: =E99+Sheet2!B$3 -> -2.42 | F100: -79.09008034 | G100: =(F101-F100)/Sheet2!$B$3 -> 17.88346971 | H100: =(F101-2*F100+F99)/Sheet2!$B$3^2 -> 63.72897033
E101: =E100+Sheet2!B$3 -> -2.41 | F101: -78.98288671 | G101: =(F102-F101)/Sheet2!$B$3 -> 18.26273194 | H101: =(F102-2*F101+F100)/Sheet2!$B$3^2 -> 63.27358156
E102: =E101+Sheet2!B$3 -> -2.41 | F102: -78.87341979 | G102: =(F103-F102)/Sheet2!$B$3 -> 18.63926973 | H102: =(F103-2*F102+F101)/Sheet2!$B$3^2 -> 62.81905507
E103: =E102+Sheet2!B$3 -> -2.40 | F103: -78.76169589 | G103: =(F104-F103)/Sheet2!$B$3 -> 19.01308826 | H103: =(F104-2*F103+F102)/Sheet2!$B$3^2 -> 62.36539085
E104: =E103+Sheet2!B$3 -> -2.39 | F104: -78.64773133 | G104: =(F105-F104)/Sheet2!$B$3 -> 19.38419268 | H104: =(F105-2*F104+F103)/Sheet2!$B$3^2 -> 61.91258891
E105: =E104+Sheet2!B$3 -> -2.39 | F105: -78.53154236 | G105: =(F106-F105)/Sheet2!$B$3 -> 19.75258818 | H105: =(F106-2*F105+F104)/Sheet2!$B$3^2 -> 61.46064924
E106: =E105+Sheet2!B$3 -> -2.38 | F106: -78.41314523 | G106: =(F107-F106)/Sheet2!$B$3 -> 20.11827992 | H106: =(F107-2*F106+F105)/Sheet2!$B$3^2 -> 61.00957185
E107: =E106+Sheet2!B$3 -> -2.38 | F107: -78.29255614 | G107: =(F108-F107)/Sheet2!$B$3 -> 20.48127307 | H107: =(F108-2*F107+F106)/Sheet2!$B$3^2 -> 60.55935673
E108: =E107+Sheet2!B$3 -> -2.37 | F108: -78.16979127 | G108: =(F109-F108)/Sheet2!$B$3 -> 20.8415728 | H108: =(F109-2*F108+F107)/Sheet2!$B$3^2 -> 60.11000388
E109: =E108+Sheet2!B$3 -> -2.36 | F109: -78.04486675 | G109: =(F110-F109)/Sheet2!$B$3 -> 21.19918426 | H109: =(F110-2*F109+F108)/Sheet2!$B$3^2 -> 59.66151331
E110: =E109+Sheet2!B$3 -> -2.36 | F110: -77.91779872 | G110: =(F111-F110)/Sheet2!$B$3 -> 21.55411265 | H110: =(F111-2*F110+F109)/Sheet2!$B$3^2 -> 59.21388502
E111: =E110+Sheet2!B$3 -> -2.35 | F111: -77.78860324 | G111: =(F112-F111)/Sheet2!$B$3 -> 21.90636311 | H111: =(F112-2*F111+F110)/Sheet2!$B$3^2 -> 58.76711899
E112: =E111+Sheet2!B$3 -> -2.35 | F112: -77.65729636 | G112: =(F113-F112)/Sheet2!$B$3 -> 22.25594082 | H112: =(F113-2*F112+F111)/Sheet2!$B$3^2 -> 58.32121525
E113: =E112+Sheet2!B$3 -> -2.34 | F113: -77.52389412 | G113: =(F114-F113)/Sheet2!$B$3 -> 22.60285095 | H113: =(F114-2*F113+F112)/Sheet2!$B$3^2 -> 57.87617378
E114: =E113+Sheet2!B$3 -> -2.33 | F114: -77.3884125 | G114: =(F115-F114)/Sheet2!$B$3 -> 22.94709867 | H114: =(F115-2*F114+F113)/Sheet2!$B$3^2 -> 57.43199458
E115: =E114+Sheet2!B$3 -> -2.33 | F115: -77.25086745 | G115: =(F116-F115)/Sheet2!$B$3 -> 23.28868915 | H115: =(F116-2*F115+F114)/Sheet2!$B$3^2 -> 56.98867766
E116: =E115+Sheet2!B$3 -> -2.32 | F116: -77.11127491 | G116: =(F117-F116)/Sheet2!$B$3 -> 23.62762755 | H116: =(F117-2*F116+F115)/Sheet2!$B$3^2 -> 56.54622301
E117: =E116+Sheet2!B$3 -> -2.32 | F117: -76.96965077 | G117: =(F118-F117)/Sheet2!$B$3 -> 23.96391904 | H117: =(F118-2*F117+F116)/Sheet2!$B$3^2 -> 56.10463063
E118: =E117+Sheet2!B$3 -> -2.31 | F118: -76.82601089 | G118: =(F119-F118)/Sheet2!$B$3 -> 24.2975688 | H118: =(F119-2*F118+F117)/Sheet2!$B$3^2 -> 55.66390053
E119: =E118+Sheet2!B$3 -> -2.30 | F119: -76.68037112 | G119: =(F120-F119)/Sheet2!$B$3 -> 24.62858198 | H119: =(F120-2*F119+F118)/Sheet2!$B$3^2 -> 55.22403271
E120: =E119+Sheet2!B$3 -> -2.30 | F120: -76.53274725 | G120: =(F121-F120)/Sheet2!$B$3 -> 24.95696376 | H120: =(F121-2*F120+F119)/Sheet2!$B$3^2 -> 54.78502716
E121: =E120+Sheet2!B$3 -> -2.29 | F121: -76.38315506 | G121: =(F122-F121)/Sheet2!$B$3 -> 25.28271931 | H121: =(F122-2*F121+F120)/Sheet2!$B$3^2 -> 54.34688389
E122: =E121+Sheet2!B$3 -> -2.29 | F122: -76.23161029 | G122: =(F123-F122)/Sheet2!$B$3 -> 25.60585379 | H122: =(F123-2*F122+F121)/Sheet2!$B$3^2 -> 53.90960289
E123: =E122+Sheet2!B$3 -> -2.28 | F123: -76.07812865 | G123: =(F124-F123)/Sheet2!$B$3 -> 25.92637238 | H123: =(F124-2*F123+F122)/Sheet2!$B$3^2 -> 53.47318416
E124: =E123+Sheet2!B$3 -> -2.27 | F124: -75.92272582 | G124: =(F125-F124)/Sheet2!$B$3 -> 26.24428024 | H124: =(F125-2*F124+F123)/Sheet2!$B$3^2 -> 53.03762771
E125: =E124+Sheet2!B$3 -> -2.27 | F125: -75.76541745 | G125: =(F126-F125)/Sheet2!$B$3 -> 26.55958253 | H125: =(F126-2*F125+F124)/Sheet2!$B$3^2 -> 52.60293353
E126: =E125+Sheet2!B$3 -> -2.26 | F126: -75.60621915 | G126: =(F127-F126)/Sheet2!$B$3 -> 26.87228444 | H126: =(F127-2*F126+F125)/Sheet2!$B$3^2 -> 52.16910163
E127: =E126+Sheet2!B$3 -> -2.26 | F127: -75.44514651 | G127: =(F128-F127)/Sheet2!$B$3 -> 27.18239113 | H127: =(F128-2*F127+F126)/Sheet2!$B$3^2 -> 51.736132
E128: =E127+Sheet2!B$3 -> -2.25 | F128: -75.2822151 | G128: =(F129-F128)/Sheet2!$B$3 -> 27.48990776 | H128: =(F129-2*F128+F127)/Sheet2!$B$3^2 -> 51.30402465
E129: =E128+Sheet2!B$3 -> -2.24 | F129: -75.11744043 | G129: =(F130-F129)/Sheet2!$B$3 -> 27.7948395 | H129: =(F130-2*F129+F128)/Sheet2!$B$3^2 -> 50.87277957
E130: =E129+Sheet2!B$3 -> -2.24 | F130: -74.95083799 | G130: =(F131-F130)/Sheet2!$B$3 -> 28.09719153 | H130: =(F131-2*F130+F129)/Sheet2!$B$3^2 -> 50.44239676
E131: =E130+Sheet2!B$3 -> -2.23 | F131: =x^4-3*x^3-25*x^2+6*x+5 -> -74.78242326 | G131: =(F132-F131)/Sheet2!$B$3 -> 28.39696901 | H131: =(F132-2*F131+F130)/Sheet2!$B$3^2 -> 50.01287623
E132: =E131+Sheet2!B$3 -> -2.23 | F132: -74.61221166 | G132: =(F133-F132)/Sheet2!$B$3 -> 28.69417711 | H132: =(F133-2*F132+F131)/Sheet2!$B$3^2 -> 49.58421798
E133: =E132+Sheet2!B$3 -> -2.22 | F133: -74.44021859 | G133: =(F134-F133)/Sheet2!$B$3 -> 28.988821 | H133: =(F134-2*F133+F132)/Sheet2!$B$3^2 -> 49.156422
E134: =E133+Sheet2!B$3 -> -2.21 | F134: -74.26645942 | G134: =(F135-F134)/Sheet2!$B$3 -> 29.28090585 | H134: =(F135-2*F134+F133)/Sheet2!$B$3^2 -> 48.72948829
E135: =E134+Sheet2!B$3 -> -2.21 | F135: -74.09094949 | G135: =(F136-F135)/Sheet2!$B$3 -> 29.57043682 | H135: =(F136-2*F135+F134)/Sheet2!$B$3^2 -> 48.30341686
E136: =E135+Sheet2!B$3 -> -2.20 | F136: -73.91370412 | G136: =(F137-F136)/Sheet2!$B$3 -> 29.85741908 | H136: =(F137-2*F136+F135)/Sheet2!$B$3^2 -> 47.87820771
E137: =E136+Sheet2!B$3 -> -2.20 | F137: -73.73473857 | G137: =(F138-F137)/Sheet2!$B$3 -> 30.14185781 | H137: =(F138-2*F137+F136)/Sheet2!$B$3^2 -> 47.45386082
E138: =E137+Sheet2!B$3 -> -2.19 | F138: -73.55406809 | G138: =(F139-F138)/Sheet2!$B$3 -> 30.42375816 | H138: =(F139-2*F138+F137)/Sheet2!$B$3^2 -> 47.03037622
E139: =E138+Sheet2!B$3 -> -2.18 | F139: -73.3717079 | G139: =(F140-F139)/Sheet2!$B$3 -> 30.70312532 | H139: =(F140-2*F139+F138)/Sheet2!$B$3^2 -> 46.60775389
E140: =E139+Sheet2!B$3 -> -2.18 | F140: -73.18767319 | G140: =(F141-F140)/Sheet2!$B$3 -> 30.97996444 | H140: =(F141-2*F140+F139)/Sheet2!$B$3^2 -> 46.18599383
E141: =E140+Sheet2!B$3 -> -2.17 | F141: -73.00197909 | G141: =(F142-F141)/Sheet2!$B$3 -> 31.2542807 | H141: =(F142-2*F141+F140)/Sheet2!$B$3^2 -> 45.76509604
E142: =E141+Sheet2!B$3 -> -2.17 | F142: -72.81464075 | G142: =(F143-F142)/Sheet2!$B$3 -> 31.52607927 | H142: =(F143-2*F142+F141)/Sheet2!$B$3^2 -> 45.34506053
E143: =E142+Sheet2!B$3 -> -2.16 | F143: -72.62567324 | G143: =(F144-F143)/Sheet2!$B$3 -> 31.79536531 | H143: =(F144-2*F143+F142)/Sheet2!$B$3^2 -> 44.9258873
E144: =E143+Sheet2!B$3 -> -2.15 | F144: -72.43509163 | G144: =(F145-F144)/Sheet2!$B$3 -> 32.06214398 | H144: =(F145-2*F144+F143)/Sheet2!$B$3^2 -> 44.50757634
E145: =E144+Sheet2!B$3 -> -2.15 | F145: -72.24291095 | G145: =(F146-F145)/Sheet2!$B$3 -> 32.32642047 | H145: =(F146-2*F145+F144)/Sheet2!$B$3^2 -> 44.09012765
E146: =E145+Sheet2!B$3 -> -2.14 | F146: -72.04914619 | G146: =(F147-F146)/Sheet2!$B$3 -> 32.58819994 | H146: =(F147-2*F146+F145)/Sheet2!$B$3^2 -> 43.67354124
E147: =E146+Sheet2!B$3 -> -2.14 | F147: -71.85381232 | G147: =(F148-F147)/Sheet2!$B$3 -> 32.84748756 | H147: =(F148-2*F147+F146)/Sheet2!$B$3^2 -> 43.25781711
E148: =E147+Sheet2!B$3 -> -2.13 | F148: -71.65692429 | G148: =(F149-F148)/Sheet2!$B$3 -> 33.10428849 | H148: =(F149-2*F148+F147)/Sheet2!$B$3^2 -> 42.84295525
E149: =E148+Sheet2!B$3 -> -2.12 | F149: -71.45849698 | G149: =(F150-F149)/Sheet2!$B$3 -> 33.3586079 | H149: =(F150-2*F149+F148)/Sheet2!$B$3^2 -> 42.42895566
E150: =E149+Sheet2!B$3 -> -2.12 | F150: -71.25854529 | G150: =(F151-F150)/Sheet2!$B$3 -> 33.61045097 | H150: =(F151-2*F150+F149)/Sheet2!$B$3^2 -> 42.01581835
E151: =E150+Sheet2!B$3 -> -2.11 | F151: -71.05708404 | G151: =(F152-F151)/Sheet2!$B$3 -> 33.85982286 | H151: =(F152-2*F151+F150)/Sheet2!$B$3^2 -> 41.60354331
E152: =E151+Sheet2!B$3 -> -2.11 | F152: -70.85412806 | G152: =(F153-F152)/Sheet2!$B$3 -> 34.10672873 | H152: =(F153-2*F152+F151)/Sheet2!$B$3^2 -> 41.19213055
E153: =E152+Sheet2!B$3 -> -2.10 | F153: -70.64969212 | G153: =(F154-F153)/Sheet2!$B$3 -> 34.35117377 | H153: =(F154-2*F153+F152)/Sheet2!$B$3^2 -> 40.78158006
E154: =E153+Sheet2!B$3 -> -2.09 | F154: -70.44379098 | G154: =(F155-F154)/Sheet2!$B$3 -> 34.59316313 | H154: =(F155-2*F154+F153)/Sheet2!$B$3^2 -> 40.37189184
E155: =E154+Sheet2!B$3 -> -2.09 | F155: -70.23643936 | G155: =(F156-F155)/Sheet2!$B$3 -> 34.83270199 | H155: =(F156-2*F155+F154)/Sheet2!$B$3^2 -> 39.9630659
E156: =E155+Sheet2!B$3 -> -2.08 | F156: -70.02765193 | G156: =(F157-F156)/Sheet2!$B$3 -> 35.06979551 | H156: =(F157-2*F156+F155)/Sheet2!$B$3^2 -> 39.55510224
E157: =E156+Sheet2!B$3 -> -2.08 | F157: -69.81744337 | G157: =(F158-F157)/Sheet2!$B$3 -> 35.30444886 | H157: =(F158-2*F157+F156)/Sheet2!$B$3^2 -> 39.14800085
E158: =E157+Sheet2!B$3 -> -2.07 | F158: -69.60582829 | G158: =(F159-F158)/Sheet2!$B$3 -> 35.53666721 | H158: =(F159-2*F158+F157)/Sheet2!$B$3^2 -> 38.74176174
E159: =E158+Sheet2!B$3 -> -2.06 | F159: -69.39282129 | G159: =(F160-F159)/Sheet2!$B$3 -> 35.76645573 | H159: =(F160-2*F159+F158)/Sheet2!$B$3^2 -> 38.33638489
E160: =E159+Sheet2!B$3 -> -2.06 | F160: -69.17843694 | G160: =(F161-F160)/Sheet2!$B$3 -> 35.99381959 | H160: =(F161-2*F160+F159)/Sheet2!$B$3^2 -> 37.93187033
E161: =E160+Sheet2!B$3 -> -2.05 | F161: -68.96268977 | G161: =(F162-F161)/Sheet2!$B$3 -> 36.21876395 | H161: =(F162-2*F161+F160)/Sheet2!$B$3^2 -> 37.52821804
E162: =E161+Sheet2!B$3 -> -2.05 | F162: -68.74559428 | G162: =(F163-F162)/Sheet2!$B$3 -> 36.44129399 | H162: =(F163-2*F162+F161)/Sheet2!$B$3^2 -> 37.12542802
E163: =E162+Sheet2!B$3 -> -2.04 | F163: -68.52716495 | G163: =(F164-F163)/Sheet2!$B$3 -> 36.66141487 | H163: =(F164-2*F163+F162)/Sheet2!$B$3^2 -> 36.72350028
E164: =E163+Sheet2!B$3 -> -2.03 | F164: -68.30741621 | G164: =(F165-F164)/Sheet2!$B$3 -> 36.87913177 | H164: =(F165-2*F164+F163)/Sheet2!$B$3^2 -> 36.32243481
E165: =E164+Sheet2!B$3 -> -2.03 | F165: -68.08636247 | G165: =(F166-F165)/Sheet2!$B$3 -> 37.09444984 | H165: =(F166-2*F165+F164)/Sheet2!$B$3^2 -> 35.92223161
E166: =E165+Sheet2!B$3 -> -2.02 | F166: -67.86401812 | G166: =(F167-F166)/Sheet2!$B$3 -> 37.30737426 | H166: =(F167-2*F166+F165)/Sheet2!$B$3^2 -> 35.5228907
E167: =E166+Sheet2!B$3 -> -2.02 | F167: -67.64039749 | G167: =(F168-F167)/Sheet2!$B$3 -> 37.51791019 | H167: =(F168-2*F167+F166)/Sheet2!$B$3^2 -> 35.12441205
E168: =E167+Sheet2!B$3 -> -2.01 | F168: -67.41551491 | G168: =(F169-F168)/Sheet2!$B$3 -> 37.72606281 | H168: =(F169-2*F168+F167)/Sheet2!$B$3^2 -> 34.72679568
E169: =E168+Sheet2!B$3 -> -2.00 | F169: -67.18938467 | G169: =(F170-F169)/Sheet2!$B$3 -> 37.93183729 | H169: =(F170-2*F169+F168)/Sheet2!$B$3^2 -> 34.33004159
E170: =E169+Sheet2!B$3 -> -2.00 | F170: -66.96202101 | G170: =(F171-F170)/Sheet2!$B$3 -> 38.13523879 | H170: =(F171-2*F170+F169)/Sheet2!$B$3^2 -> 33.93414977
E171: =E170+Sheet2!B$3 -> -1.99 | F171: -66.73343816 | G171: =(F172-F171)/Sheet2!$B$3 -> 38.33627247 | H171: =(F172-2*F171+F170)/Sheet2!$B$3^2 -> 33.53912022
E172: =E171+Sheet2!B$3 -> -1.99 | F172: -66.50365031 | G172: =(F173-F172)/Sheet2!$B$3 -> 38.53494352 | H172: =(F173-2*F172+F171)/Sheet2!$B$3^2 -> 33.14495295
E173: =E172+Sheet2!B$3 -> -1.98 | F173: -66.27267163 | G173: =(F174-F173)/Sheet2!$B$3 -> 38.7312571 | H173: =(F174-2*F173+F172)/Sheet2!$B$3^2 -> 32.75164795
E174: =E173+Sheet2!B$3 -> -1.98 | F174: -66.04051624 | G174: =(F175-F174)/Sheet2!$B$3 -> 38.92521837 | H174: =(F175-2*F174+F173)/Sheet2!$B$3^2 -> 32.35920523
E175: =E174+Sheet2!B$3 -> -1.97 | F175: -65.80719825 | G175: =(F176-F175)/Sheet2!$B$3 -> 39.1168325 | H175: =(F176-2*F175+F174)/Sheet2!$B$3^2 -> 31.96762478
E176: =E175+Sheet2!B$3 -> -1.96 | F176: -65.57273172 | G176: =(F177-F176)/Sheet2!$B$3 -> 39.30610467 | H176: =(F177-2*F176+F175)/Sheet2!$B$3^2 -> 31.57690661
E177: =E176+Sheet2!B$3 -> -1.96 | F177: -65.33713069 | G177: =(F178-F177)/Sheet2!$B$3 -> 39.49304004 | H177: =(F178-2*F177+F176)/Sheet2!$B$3^2 -> 31.18705071
E178: =E177+Sheet2!B$3 -> -1.95 | F178: -65.10040917 | G178: =(F179-F178)/Sheet2!$B$3 -> 39.67764378 | H178: =(F179-2*F178+F177)/Sheet2!$B$3^2 -> 30.79805709
E179: =E178+Sheet2!B$3 -> -1.95 | F179: -64.86258114 | G179: =(F180-F179)/Sheet2!$B$3 -> 39.85992105 | H179: =(F180-2*F179+F178)/Sheet2!$B$3^2 -> 30.40992574
E180: =E179+Sheet2!B$3 -> -1.94 | F180: -64.62366053 | G180: =(F181-F180)/Sheet2!$B$3 -> 40.03987704 | H180: =(F181-2*F180+F179)/Sheet2!$B$3^2 -> 30.02265666
E181: =E180+Sheet2!B$3 -> -1.93 | F181: -64.38366127 | G181: =(F182-F181)/Sheet2!$B$3 -> 40.2175169 | H181: =(F182-2*F181+F180)/Sheet2!$B$3^2 -> 29.63624987
E182: =E181+Sheet2!B$3 -> -1.93 | F182: -64.14259723 | G182: =(F183-F182)/Sheet2!$B$3 -> 40.3928458 | H182: =(F183-2*F182+F181)/Sheet2!$B$3^2 -> 29.25070534
E183: =E182+Sheet2!B$3 -> -1.92 | F183: -63.90048227 | G183: =(F184-F183)/Sheet2!$B$3 -> 40.56586891 | H183: =(F184-2*F183+F182)/Sheet2!$B$3^2 -> 28.86602309
E184: =E183+Sheet2!B$3 -> -1.92 | F184: -63.65733021 | G184: =(F185-F184)/Sheet2!$B$3 -> 40.73659141 | H184: =(F185-2*F184+F183)/Sheet2!$B$3^2 -> 28.48220311
E185: =E184+Sheet2!B$3 -> -1.91 | F185: -63.41315484 | G185: =(F186-F185)/Sheet2!$B$3 -> 40.90501846 | H185: =(F186-2*F185+F184)/Sheet2!$B$3^2 -> 28.09924541
E186: =E185+Sheet2!B$3 -> -1.90 | F186: -63.16796991 | G186: =(F187-F186)/Sheet2!$B$3 -> 41.07115522 | H186: =(F187-2*F186+F185)/Sheet2!$B$3^2 -> 27.71714998
E187: =E186+Sheet2!B$3 -> -1.90 | F187: -62.92178916 | G187: =(F188-F187)/Sheet2!$B$3 -> 41.23500687 | H187: =(F188-2*F187+F186)/Sheet2!$B$3^2 -> 27.33591683
E188: =E187+Sheet2!B$3 -> -1.89 | F188: -62.67462628 | G188: =(F189-F188)/Sheet2!$B$3 -> 41.39657857 | H188: =(F189-2*F188+F187)/Sheet2!$B$3^2 -> 26.95554595
E189: =E188+Sheet2!B$3 -> -1.89 | F189: -62.42649494 | G189: =(F190-F189)/Sheet2!$B$3 -> 41.5558755 | H189: =(F190-2*F189+F188)/Sheet2!$B$3^2 -> 26.57603735
E190: =E189+Sheet2!B$3 -> -1.88 | F190: -62.17740878 | G190: =(F191-F190)/Sheet2!$B$3 -> 41.71290282 | H190: =(F191-2*F190+F189)/Sheet2!$B$3^2 -> 26.19739102
E191: =E190+Sheet2!B$3 -> -1.87 | F191: -61.92738139 | G191: =(F192-F191)/Sheet2!$B$3 -> 41.8676657 | H191: =(F192-2*F191+F190)/Sheet2!$B$3^2 -> 25.81960697
E192: =E191+Sheet2!B$3 -> -1.87 | F192: -61.67642635 | G192: =(F193-F192)/Sheet2!$B$3 -> 42.0201693 | H192: =(F193-2*F192+F191)/Sheet2!$B$3^2 -> 25.44268519
E193: =E192+Sheet2!B$3 -> -1.86 | F193: -61.4245572 | G193: =(F194-F193)/Sheet2!$B$3 -> 42.17041881 | H193: =(F194-2*F193+F192)/Sheet2!$B$3^2 -> 25.06662568
E194: =E193+Sheet2!B$3 -> -1.86 | F194: -61.17178746 | G194: =(F195-F194)/Sheet2!$B$3 -> 42.31841938 | H194: =(F195-2*F194+F193)/Sheet2!$B$3^2 -> 24.69142845
E195: =E194+Sheet2!B$3 -> -1.85 | F195: =x^4-3*x^3-25*x^2+6*x+5 -> -60.9181306 | G195: =(F196-F195)/Sheet2!$B$3 -> 42.46417618 | H195: =(F196-2*F195+F194)/Sheet2!$B$3^2 -> 24.3170935
E196: =E195+Sheet2!B$3 -> -1.84 | F196: -60.66360007 | G196: =(F197-F196)/Sheet2!$B$3 -> 42.60769439 | H196: =(F197-2*F196+F195)/Sheet2!$B$3^2 -> 23.94362082
E197: =E196+Sheet2!B$3 -> -1.84 | F197: -60.4082093 | G197: =(F198-F197)/Sheet2!$B$3 -> 42.74897917 | H197: =(F198-2*F197+F196)/Sheet2!$B$3^2 -> 23.57101041
E198: =E197+Sheet2!B$3 -> -1.83 | F198: -60.15197166 | G198: =(F199-F198)/Sheet2!$B$3 -> 42.88803568 | H198: =(F199-2*F198+F197)/Sheet2!$B$3^2 -> 23.19926228
E199: =E198+Sheet2!B$3 -> -1.83 | F199: -59.89490052 | G199: =(F200-F199)/Sheet2!$B$3 -> 43.02486911 | H199: =(F200-2*F199+F198)/Sheet2!$B$3^2 -> 22.82837642
E200: =E199+Sheet2!B$3 -> -1.82 | F200: -59.63700919 | G200: =(F201-F200)/Sheet2!$B$3 -> 43.15948461 | H200: =(F201-2*F200+F199)/Sheet2!$B$3^2 -> 22.45835284
... 804 more rows

Sheet Defining Function
A1: Defining a Function in Excel
A3: Computers have very specific rules you must follow when defining a function. If you don't, the program will either not work at all or will work incorrectly.
A5: 1. The Variable used should be the one named in the instruction, usually x, though sometimes y, t, Q (for an angle theta),
A6: or even x and y (for a function of two variables).
A8: 2. Order of Operations: There five arithmetic operations, addition (+), subtraction (-), multiplication (*), division (/), and exponentiation or power (^). When computers see any of these operation symbols, they perform the indicated steps in a very particular order. First, the power is done. Second, products and quotients of adjacent terms is done. Third, and last, sums and differences of adjacent terms are done. So, in 10*x^3 + 5*x – 7, say with x = 2, the first pass only calculates 2^3 and ignores the multiplications and the sums and differences to calculate 2^3 = 8. The second pass looks at 10*8 + 5*2 – 7 and only does the multiplications, so it produces 80 + 10 - 7. The third pass looks at the +’s and –‘s to produce 80 + 10 – 7 = 83.
A10: 3. Parentheses If you need an operation involving more than two adjacent terms, as in Ö4^3 + 6^2, the computer would take the square root of 4 to produce 2^3 + 6^2; it would then cube the 2 and square the 6 to produce 8 + 36; and finally it would add the 8 and the 36 to get 44. If you actually wanted the square root of the entire expression, you would need to use parentheses, as in Ö(4^3 + 6^2) to tell the computer to do all the operations inside the parentheses before taking the square root. Therefore, it would calculate (4^3 + 6^2) = 64 + 36 = 100 and then take the square root of Ö100 = 10.
A12: 4. Built-In Functions Computer programs have built-in functions for most common algebraic functions. In Excel, the square root function is denoted by SQRT(…), so SQRT(100) = 10. Alternatively, you could enter it as 100^.5 or 100^(1/2); notice that parentheses are needed to have the ½ done first. The common trig functions are SIN (…), COS (…), and TAN (…), where the arguments are automatically interpreted as being in radians, not degrees. The logarithm to the base 10 is represented by LOG (…) and the logarithm with the base e, known as the natural logarithm, is LN (…). The corresponding exponential function with base e is EXP (x). If x is the variable, then each of these would be SQRT (x), SIN (x), COS (x), TAN (x), LOG (x) (for log with base 10 ), LN (x) (for log with base e ), and EXP (x).

Sheet Sheet3
